bitfinex-derivatives/quotes_ETHF0:USTF0_20250902
["timestamp","ask_amount","ask_price","bid_price","bid_amount"]
[1756772644936,1.29768019,4307.3,4307.2,0.2088]
[1756772645138,1.29768019,4307.3,4307.2,0.7066]
[1756772646342,0.98378019,4307.3,4307.2,0.7066]
[1756772647034,0.58188019,4307.3,4307.2,0.7066]
[1756772647238,3.2078,4307.8,4307.3,0.2942]
[1756772647440,3.2078,4307.8,4307.2,0.4124]
[1756772647441,3.2078,4307.8,4307.7,0.7066]
[1756772647638,0.4019,4307.0,4306.9,0.2942]
[1756772647840,0.7158,4307.0,4306.3,0.2942]
[1756772648440,0.7158,4307.0,4306.9,0.7066]
[1756772648744,0.7158,4307.0,4306.9,0.503]
[1756772649744,0.7158,4307.0,4306.9,0.7066]
[1756772651840,0.1964,4307.0,4306.9,0.7066]
[1756772652036,0.6947,4307.9,4307.8,0.2098]
[1756772652234,1.27717648,4307.9,4307.8,0.2098]
[1756772652635,1.27717648,4307.9,4307.8,0.7242]
[1756772652841,0.98687648,4307.9,4307.8,0.7242]
[1756772653035,1.24648787,4308.8,4308.0,0.4166]
[1756772653036,3.4981,4308.8,4308.0,0.4166]
[1756772653347,1.27718217,4308.7,4308.6,0.5174]
[1756772653550,0.77848217,4308.7,4308.6,0.7242]
[1756772654646,0.58248217,4308.7,4308.6,0.7242]
[1756772654850,0.4863,4309.1,4309.0,0.4166]
[1756772655044,1.27679237,4309.1,4309.0,0.7242]
[1756772655245,0.6947,4309.1,4309.0,0.7242]
[1756772655746,3.4981,4309.5,4309.0,0.7242]
[1756772655948,0.2903,4309.4,4309.1,0.3076]
[1756772656142,0.196,4309.4,4309.3,0.4166]
[1756772656345,0.196,4309.4,4309.3,0.7242]
[1756772656545,0.6947,4309.4,4309.3,0.7242]
[1756772657946,3.2078,4309.5,4309.3,0.4166]
[1756772658151,0.2903,4309.8,4309.4,0.4166]
[1756772658351,0.4863,4309.8,4309.7,0.4166]
[1756772658546,0.4863,4309.8,4309.7,0.7242]
[1756772658945,0.196,4309.8,4309.7,0.7242]
[1756772659755,3.2078,4310.1,4309.8,0.3076]
[1756772659942,3.2078,4310.7,4310.1,0.3076]
[1756772660141,3.2078,4310.7,4310.0,0.5313]
[1756772660142,3.2078,4310.7,4310.6,0.7242]
[1756772661347,0.196,4310.8,4310.7,0.7242]
[1756772661547,0.4863,4310.8,4310.7,0.7242]
[1756772662154,0.196,4310.8,4310.7,0.7242]
[1756772662356,0.6947,4310.8,4310.7,0.5174]
[1756772663150,0.6947,4310.8,4310.3,3.5154]
[1756772663452,0.6947,4310.5,4310.4,0.5174]
[1756772664144,0.4044,4310.5,4310.4,0.7242]
[1756772664348,0.196,4310.6,4310.5,0.4166]
[1756772664547,0.196,4310.6,4310.5,0.7242]
[1756772665248,0.6947,4310.6,4310.5,0.7242]
[1756772666856,0.4044,4310.2,4310.1,0.239]
[1756772667051,0.4044,4310.2,4309.8,3.2078]
[1756772667052,0.2903,4310.1,4309.8,3.5154]
[1756772667257,0.4044,4309.9,4309.4,0.3076]
[1756772667452,0.6947,4309.5,4309.4,0.7564]
[1756772667656,0.196,4309.5,4309.4,0.9632]
[1756772667852,0.2903,4309.9,4309.5,0.3076]
[1756772668155,0.6947,4309.9,4309.8,0.5174]
[1756772668355,0.6947,4309.9,4309.4,0.5466]
[1756772668556,0.6947,4309.6,4309.5,0.7242]
[1756772668757,0.196,4309.6,4309.5,0.7242]
[1756772670259,0.6947,4309.6,4309.5,0.7242]
[1756772670450,0.6947,4309.6,4309.5,0.9632]
[1756772671253,0.6947,4309.6,4309.5,0.7242]
[1756772671652,3.6122,4310.2,4310.1,0.7242]
[1756772671958,3.9025,4310.2,4310.1,0.7242]
[1756772672753,3.9025,4310.2,4310.1,0.2098]
[1756772673257,3.9025,4310.2,4309.8,0.3076]
[1756772673760,3.6122,4310.2,4309.8,0.3076]
[1756772673966,0.196,4309.8,4309.7,0.9632]
[1756772674153,0.4044,4309.8,4309.7,0.9632]
[1756772674458,0.6947,4309.8,4309.7,0.9632]
[1756772674860,3.2078,4310.7,4310.6,0.3076]
[1756772675161,3.2078,4310.7,4310.6,0.7242]
[1756772675361,3.9025,4310.7,4310.6,0.7242]
[1756772675960,3.6122,4310.7,4310.6,0.7242]
[1756772676859,0.4044,4310.7,4310.6,0.7242]
[1756772677459,0.6947,4310.7,4310.6,0.7242]
[1756772679055,0.4044,4310.7,4310.6,0.7242]
[1756772679259,0.6947,4310.7,4310.6,0.7242]
[1756772681360,3.2078,4311.1,4310.6,0.4166]
[1756772681561,3.9018,4311.1,4311.0,0.3876]
[1756772681866,4.48185973,4311.1,4311.0,0.6956]
[1756772682166,0.58005973,4311.1,4311.0,0.6956]
[1756772682365,3.2078,4311.8,4311.1,0.308]
[1756772682559,1.27453294,4311.7,4311.6,0.1953]
[1756772682863,1.27453294,4311.7,4311.3,0.308]
[1756772683066,0.694,4311.4,4311.3,0.6956]
[1756772683367,3.702,4311.8,4311.7,0.3876]
[1756772683567,4.48262299,4311.8,4311.7,0.6956]
[1756772684068,4.48262299,4311.8,4311.4,0.308]
[1756772684264,0.4027,4311.2,4310.7,3.2078]
[1756772684462,0.694,4310.8,4310.7,3.4031]
[1756772685263,0.932,4311.3,4311.2,0.1953]
[1756772685463,0.98394573,4311.3,4311.2,0.6956]
[1756772685671,0.2913,4311.6,4311.3,0.308]
[1756772685966,0.694,4311.4,4311.3,0.5033]
[1756772686159,0.2913,4311.3,4310.8,0.546]
[1756772686361,0.694,4310.9,4310.8,0.5033]
[1756772686565,0.694,4310.9,4310.8,0.1953]
[1756772687471,0.694,4310.9,4310.8,0.5033]
[1756772689267,0.2913,4310.8,4310.7,3.2078]
[1756772689565,0.694,4310.8,4310.7,3.2078]
[1756772689770,0.694,4310.8,4310.7,3.9034]
[1756772689977,1.27568608,4310.8,4310.7,3.9034]
[1756772690368,0.98438608,4310.8,4310.7,3.9034]
[1756772690973,0.78458608,4310.8,4310.7,3.9034]
[1756772691168,0.58168608,4310.8,4310.7,3.9034]
[1756772691769,0.2913,4311.2,4310.7,3.9034]
[1756772691971,0.58164185,4311.1,4311.0,0.3876]
[1756772692168,0.78454185,4311.1,4311.0,0.6956]
[1756772692367,1.27564185,4311.1,4311.0,0.6956]
[1756772693670,0.78454185,4311.1,4311.0,0.6956]
[1756772694668,0.58164185,4311.1,4311.0,0.6956]
[1756772694874,0.58164185,4311.1,4311.0,0.8155]
[1756772695175,0.6407,4311.7,4311.6,0.1953]
[1756772695374,1.5134615,4311.7,4311.6,0.5033]
[1756772695570,1.2754615,4311.7,4311.6,0.5033]
[1756772695774,1.2754615,4311.7,4311.6,0.1953]
[1756772696578,0.9841615,4311.7,4310.8,0.238]
[1756772696879,0.8727615,4311.6,4310.9,0.308]
[1756772697077,0.5814615,4311.5,4310.9,0.308]
[1756772697277,1.2754615,4311.4,4311.3,0.1953]
[1756772697471,1.2754615,4311.4,4311.3,0.5033]
[1756772699179,0.694,4310.8,4310.7,7.6111]
[1756772699382,0.694,4310.8,4310.7,3.7111]
[1756772699872,0.694,4310.8,4310.7,3.2078]
[1756772700074,0.694,4310.8,4310.2,0.546]
[1756772700075,1.27562374,4310.8,4310.2,0.546]
[1756772700272,0.2913,4310.2,4310.1,3.2078]
[1756772700475,0.2913,4309.6,4309.5,3.2078]
[1756772700677,0.694,4309.6,4309.5,3.2078]
[1756772700875,0.694,4309.6,4309.5,3.7111]
[1756772701185,0.694,4309.6,4309.5,3.9034]
[1756772702780,0.694,4310.1,4310.0,0.6956]
[1756772702981,3.2078,4310.4,4310.0,0.6956]
[1756772703175,0.78474571,4310.3,4310.2,0.6956]
[1756772703578,1.27584571,4310.3,4310.2,0.6956]
[1756772704583,0.58184571,4310.3,4310.2,0.6956]
[1756772704782,0.238,4310.5,4310.4,0.3876]
[1756772705082,3.4991,4311.1,4310.5,0.308]
[1756772705282,1.51388813,4311.0,4310.9,0.5033]
[1756772705885,1.51388813,4311.0,4310.3,0.217]
[1756772705886,0.2913,4310.9,4310.4,0.308]
[1756772706186,1.22258813,4311.0,4310.7,0.5033]
[1756772706187,0.98458813,4310.8,4310.7,0.5033]
[1756772706382,1.27588813,4310.8,4310.7,0.5033]
[1756772706582,0.98458813,4310.8,4310.7,0.6956]
[1756772706880,0.2913,4311.5,4310.8,0.308]
[1756772707087,0.694,4311.5,4311.4,0.5033]
[1756772707281,1.27579148,4311.5,4311.4,0.5033]
[1756772707486,1.27579148,4311.5,4311.4,0.6956]
[1756772708583,0.58179148,4311.5,4311.4,0.6956]
[1756772708786,0.4942,4311.9,4311.8,0.3876]
[1756772709087,0.2029,4311.9,4311.8,0.6956]
[1756772709787,3.2078,4312.3,4311.9,0.308]
[1756772709984,3.4107,4312.3,4312.2,0.6956]
[1756772710187,3.9018,4312.3,4312.2,0.6956]
[1756772711188,3.2078,4312.3,4311.7,3.2078]
[1756772711690,0.1945,4311.9,4311.8,0.7009]
[1756772712393,0.3107,4311.8,4311.3,0.5496]
[1756772712688,0.5052,4311.4,4311.3,0.7404]
[1756772712889,0.6993,4311.4,4311.3,0.7009]
[1756772713087,0.3107,4311.8,4311.3,0.3893]
[1756772713288,0.3107,4312.2,4311.4,0.3116]
[1756772713487,0.5487,4312.2,4311.4,0.3116]
[1756772714993,0.1945,4311.5,4311.4,0.7009]
[1756772715291,0.6993,4311.5,4311.4,0.7009]
[1756772715986,0.3886,4311.5,4311.4,0.7009]
[1756772716386,0.3107,4312.2,4311.5,0.3116]
[1756772716692,0.1945,4311.6,4311.5,0.7009]
[1756772716888,0.5052,4311.6,4311.5,0.7009]
[1756772717086,0.1945,4311.6,4311.5,0.7009]
[1756772717686,3.4023,4312.3,4312.2,0.7009]
[1756772717887,3.2078,4312.3,4312.2,0.7009]
[1756772719292,3.5185,4313.0,4312.3,0.3116]
[1756772719495,0.6993,4312.9,4312.3,0.3116]
[1756772719792,0.1945,4312.4,4312.3,0.7009]
[1756772720093,0.88839442,4312.4,4312.3,0.7009]
[1756772720789,0.3886,4311.9,4311.7,3.2078]
[1756772720984,0.1945,4311.5,4311.4,0.5496]
[1756772721187,0.88839442,4311.5,4311.4,0.5024]
[1756772721587,0.18909442,4311.5,4311.4,0.7009]
[1756772721793,0.18909442,4311.5,4311.4,0.3893]
[1756772721988,0.6993,4311.5,4311.4,0.7009]
[1756772722189,0.88839442,4311.5,4311.4,0.7009]
[1756772722394,0.38359442,4311.5,4311.4,0.7009]
[1756772723490,3.2078,4312.4,4311.4,0.3893]
[1756772723684,0.6993,4312.3,4312.2,0.7009]
[1756772723890,0.3107,4312.2,4312.0,0.238]
[1756772724086,0.3886,4312.1,4311.8,3.5194]
[1756772724388,0.6993,4311.9,4311.8,3.2078]
[1756772724986,0.6993,4311.9,4311.8,3.3986]
[1756772725186,0.6993,4311.9,4311.8,3.9087]
[1756772725998,0.3107,4312.3,4311.8,3.9087]
[1756772726200,3.4023,4312.4,4312.3,0.7009]
[1756772726498,0.1945,4312.4,4312.3,0.7009]
[1756772727091,0.6993,4312.4,4312.3,0.1908]
[1756772727490,0.6993,4312.4,4311.9,0.3116]
[1756772727691,0.3886,4312.4,4311.9,0.5496]
[1756772727893,0.5052,4312.0,4311.9,0.7404]
[1756772728398,0.5052,4312.0,4311.9,0.9389]
[1756772728596,0.3107,4312.5,4311.9,0.6273]
[1756772728792,0.5052,4312.9,4312.8,0.1908]
[1756772728995,1.28094675,4312.9,4312.8,0.1908]
[1756772729901,0.6993,4312.9,4312.8,0.7009]
[1756772730100,0.6993,4312.9,4312.8,0.3893]
[1756772730496,0.1945,4312.9,4312.8,0.7009]
[1756772730695,0.3107,4313.3,4313.2,0.3893]
[1756772730901,0.5052,4313.5,4313.4,0.3893]
[1756772731197,0.5052,4313.5,4313.4,0.7009]
[1756772731793,0.6993,4313.5,4313.4,0.7009]
[1756772731996,0.6993,4313.5,4313.4,0.1908]
[1756772732197,0.6993,4313.5,4312.9,0.5496]
[1756772732496,0.6993,4313.5,4312.9,0.3116]
[1756772733201,0.6993,4313.5,4313.4,0.1908]
[1756772734503,0.6993,4313.5,4313.4,0.7009]
[1756772735002,0.1945,4313.5,4313.4,0.7009]
[1756772735503,0.5052,4313.5,4313.4,0.7009]
[1756772736202,3.2078,4313.6,4313.4,0.7009]
[1756772736496,0.238,4314.0,4313.4,0.7009]
[1756772736497,0.1945,4314.2,4314.1,0.7009]
[1756772736702,1.24648787,4315.3,4313.0,0.1221]
[1756772736703,3.4023,4314.9,4314.8,0.3893]
[1756772736898,3.9071,4314.9,4314.8,0.1908]
[1756772737097,3.9071,4314.9,4314.3,0.238]
[1756772737403,3.9071,4314.9,4314.8,0.1908]
[1756772737603,3.9071,4314.9,4314.3,0.238]
[1756772737800,3.9071,4314.9,4314.8,0.1908]
[1756772738904,0.3886,4314.6,4314.5,0.5024]
[1756772739100,0.1945,4314.6,4314.5,0.7009]
[1756772739399,3.9071,4314.9,4314.8,0.1908]
[1756772740201,0.1155,4315.5,4314.8,0.1908]
[1756772740202,0.3107,4315.4,4314.9,0.3116]
[1756772740401,0.238,4315.7,4315.4,0.3116]
[1756772740608,0.5487,4315.7,4315.4,0.7009]
[1756772740807,0.6993,4315.6,4315.5,0.1908]
[1756772741802,0.6993,4315.6,4315.2,3.5194]
[1756772741998,0.1981,4315.3,4315.2,3.7288]
[1756772742202,0.4946,4315.3,4315.2,3.7288]
[1756772742406,0.4946,4315.3,4315.2,3.9337]
[1756772742808,0.6987,4315.3,4315.2,3.9337]
[1756772747319,0.1981,4315.3,4315.2,3.9337]
[1756772747617,0.4946,4315.3,4315.2,3.9337]
[1756772747818,0.4946,4315.3,4315.2,4.1717]
[1756772748120,0.1981,4314.7,4314.6,0.7156]
[1756772748322,0.1981,4314.7,4314.6,0.9536]
[1756772748711,0.4946,4315.0,4314.9,0.4143]
[1756772749016,0.6987,4315.0,4314.9,0.4143]
[1756772749622,0.6987,4315.0,4314.9,0.7156]
[1756772751322,0.6987,4315.0,4314.9,0.4143]
[1756772751517,0.6987,4315.0,4314.6,0.238]
[1756772751723,0.6987,4314.9,4314.8,0.2094]
[1756772752020,0.6987,4314.9,4314.5,0.238]
[1756772752622,0.6987,4314.9,4314.4,0.238]
[1756772752822,0.6987,4314.9,4314.4,0.5393]
[1756772753124,0.1981,4314.5,4314.4,0.9536]
[1756772753319,0.4946,4314.5,4314.4,0.9536]
[1756772754423,0.6987,4314.5,4314.4,0.9536]
[1756772755121,0.6987,4314.5,4314.4,0.7156]
[1756772755426,0.6987,4314.5,4314.4,0.9536]
[1756772756426,0.6987,4314.5,4314.4,0.238]
[1756772756632,0.6987,4314.5,4314.1,3.2078]
[1756772756633,0.4022,4314.3,4314.2,0.238]
[1756772756928,0.6987,4314.3,4314.2,0.4474]
[1756772757332,0.6987,4314.3,4314.2,0.9536]
[1756772757525,0.6987,4314.3,4314.2,0.7156]
[1756772759139,3.2078,4315.1,4314.2,0.7156]
[1756772759332,0.4946,4315.0,4314.9,0.7156]
[1756772759737,1.27995194,4315.0,4314.9,0.7156]
[1756772759932,0.4022,4314.3,4314.2,0.5107]
[1756772760128,0.6987,4314.3,4314.2,0.9536]
[1756772760328,0.2965,4315.1,4314.2,0.6523]
[1756772760530,0.6987,4314.4,4314.3,0.4143]
[1756772760732,0.2965,4314.3,4314.2,0.238]
[1756772760938,0.2965,4314.3,4314.1,3.2078]
[1756772760939,0.2965,4314.2,4314.1,3.2078]
[1756772761239,0.6987,4314.2,4314.1,3.6552]
[1756772761843,0.6987,4314.2,4314.1,4.1614]
[1756772762138,0.1981,4314.2,4314.1,4.1614]
[1756772762439,3.2078,4315.2,4314.4,0.7156]
[1756772762637,0.58197253,4315.1,4315.0,0.7156]
[1756772762837,0.4946,4316.0,4315.9,0.4143]
[1756772763142,1.28047291,4316.0,4315.9,0.7156]
[1756772763342,0.77987291,4316.0,4315.9,0.7156]
[1756772764043,1.07637291,4316.0,4315.9,0.7156]
[1756772764238,3.5043,4316.5,4315.9,0.7156]
[1756772764437,0.58207316,4316.4,4316.3,0.4143]
[1756772764739,0.1981,4316.4,4316.3,0.4143]
[1756772764931,3.2078,4316.5,4316.4,0.3013]
[1756772765135,3.4059,4316.5,4316.4,0.7156]
[1756772765336,3.7024,4316.5,4316.4,0.7156]
[1756772765842,0.1981,4316.2,4316.1,0.7487]
[1756772766039,0.1981,4316.2,4316.1,0.9536]
[1756772766535,0.4946,4316.2,4316.1,0.9536]
[1756772766843,0.1981,4316.2,4316.1,0.7156]
[1756772767245,3.2078,4316.5,4316.1,0.4143]
[1756772767446,0.2965,4316.4,4316.2,0.3013]
[1756772767634,0.4946,4316.4,4316.3,0.7156]
[1756772768234,3.9065,4317.1,4316.4,0.3013]
[1756772768546,0.1981,4316.5,4316.4,0.7156]
[1756772768732,0.4946,4316.5,4316.4,0.7156]
[1756772769141,0.1981,4316.5,4316.4,0.7156]
[1756772770445,0.2965,4316.8,4316.7,0.4143]
[1756772770646,1.07478015,4316.8,4316.7,0.7156]
[1756772771039,0.58018015,4316.8,4316.7,0.7156]
[1756772771341,3.2078,4317.1,4316.8,0.2873]
[1756772771342,3.5068,4317.1,4316.8,0.2873]
[1756772771544,0.7178,4317.1,4317.0,0.689]
[1756772771848,1.29773744,4317.1,4317.0,0.689]
[1756772772050,1.29773636,4317.1,4317.0,0.689]
[1756772772252,0.7178,4317.1,4317.0,0.689]
[1756772775146,0.2093,4316.5,4316.4,0.4812]
[1756772775351,0.7178,4316.5,4316.4,0.927]
[1756772778952,0.7178,4316.5,4316.4,0.689]
[1756772779154,0.2093,4316.5,4316.4,0.927]
[1756772780552,0.5083,4316.8,4316.7,0.689]
[1756772782053,0.7178,4316.8,4316.7,0.1939]
[1756772782458,0.7178,4316.8,4316.7,0.689]
[1756772783548,4.94946001,4316.8,4316.1,3.2078]
[1756772783853,4.94946001,4316.8,4315.6,3.2078]
[1756772783854,0.7178,4315.7,4315.6,3.2078]
[1756772784750,0.7178,4315.7,4315.6,3.4017]
[1756772785656,0.7178,4315.7,4315.6,3.8968]
[1756772785858,0.7178,4315.7,4315.6,3.4017]
[1756772787357,0.7178,4315.7,4315.6,3.689]
[1756772787559,0.7178,4315.7,4315.6,3.8968]
[1756772787757,0.7178,4315.7,4315.6,3.2078]
[1756772788458,0.7178,4315.7,4315.6,3.4017]
[1756772788958,0.299,4315.6,4315.0,3.2078]
[1756772789162,0.7178,4315.1,4315.0,3.2078]
[1756772792565,0.7178,4315.1,4314.5,0.238]
[1756772792761,0.4188,4314.4,4314.3,3.689]
[1756772792957,0.7178,4314.4,4314.3,3.4017]
[1756772793856,3.9256,4314.4,4314.3,0.1939]
[1756772794057,0.4188,4313.7,4313.6,3.4017]
[1756772794261,0.7178,4313.7,4313.6,3.4017]
[1756772794463,0.2093,4313.7,4313.6,3.8968]
[1756772796865,0.7178,4313.7,4313.6,3.8968]
[1756772797077,0.7178,4313.7,4313.6,3.4017]
[1756772797264,0.7178,4313.7,4313.6,0.1939]
[1756772797663,0.299,4313.6,4313.0,3.2078]
[1756772797869,0.5083,4313.3,4313.2,0.927]
[1756772798062,0.299,4314.2,4313.3,0.2873]
[1756772798377,0.53082,4314.2,4313.3,0.2873]
[1756772798567,0.23182,4314.1,4313.3,0.2873]
[1756772798764,0.299,4314.2,4313.3,0.2873]
[1756772799165,0.2093,4313.4,4313.3,0.689]
[1756772799770,0.7178,4313.4,4313.3,0.689]
[1756772803572,0.7178,4313.4,4313.0,3.2078]
[1756772803778,0.4188,4313.4,4313.3,0.206]
[1756772804274,0.7115,4313.4,4313.3,0.206]
[1756772805070,0.7115,4313.4,4313.0,3.2078]
[1756772805272,0.18812177,4313.5,4312.5,3.9105]
[1756772805273,0.7003,4312.6,4312.5,3.9105]
[1756772806567,0.7003,4312.6,4312.5,0.7027]
[1756772806773,0.7003,4312.6,4312.5,0.3987]
[1756772806966,0.2017,4312.1,4312.0,0.3987]
[1756772807169,0.2017,4312.1,4312.0,0.7027]
[1756772807368,0.4944,4312.1,4312.0,0.7027]
[1756772808478,0.2017,4312.1,4312.0,0.7027]
[1756772809473,0.2927,4312.4,4312.0,0.7027]
[1756772809665,0.2017,4313.0,4312.9,0.7027]
[1756772809864,3.2078,4313.1,4312.9,3.3185641]
[1756772810171,3.2078,4313.1,4313.0,0.7027]
[1756772810574,3.9081,4313.1,4313.0,0.7027]
[1756772811572,0.238,4313.5,4313.1,0.304]
[1756772811870,0.2927,4314.0,4313.4,0.3987]
[1756772812071,0.2927,4314.0,4313.5,0.304]
[1756772812374,0.7003,4314.0,4313.9,0.3987]
[1756772812577,0.238,4314.2,4313.1,0.542]
[1756772812769,0.2017,4313.2,4313.1,0.9407]
[1756772816970,0.7003,4313.2,4313.1,0.7027]
[1756772817175,0.7003,4313.2,4313.1,0.3987]
[1756772818374,0.2927,4313.7,4313.2,0.304]
[1756772818578,1.28124957,4313.6,4313.5,0.7027]
[1756772818779,1.28124957,4313.6,4313.5,0.206]
[1756772818974,1.28124957,4313.6,4313.5,0.7027]
[1756772820880,3.2078,4313.8,4313.6,0.304]
[1756772821076,3.2078,4313.8,4313.5,0.522]
[1756772821077,3.2078,4313.8,4313.7,0.3987]
[1756772821277,3.2078,4313.8,4313.7,0.7027]
[1756772821875,3.2078,4314.3,4313.8,0.304]
[1756772822077,0.5815548,4314.2,4314.1,0.7027]
[1756772822380,0.5815548,4314.2,4314.1,4.1485]
[1756772822573,3.2078,4314.8,4314.1,4.1485]
[1756772822877,0.58180532,4314.7,4314.6,0.3987]
[1756772823075,0.78350532,4314.7,4314.6,0.7027]
[1756772823275,0.98940532,4314.7,4314.1,3.2078]
[1756772823476,0.7003,4314.0,4313.9,0.3987]
[1756772823784,0.7003,4314.0,4313.9,0.206]
[1756772824186,0.2017,4313.1,4313.0,0.7027]
[1756772824682,0.4944,4313.1,4313.0,0.9407]
[1756772824879,3.2078,4313.6,4313.0,0.6367]
[1756772825182,1.28221324,4313.5,4313.4,0.206]
[1756772825383,1.28221324,4313.5,4313.4,0.7027]
[1756772825683,0.78361324,4313.5,4313.4,0.7027]
[1756772826484,0.5307,4314.0,4313.4,0.7027]
[1756772826781,0.7003,4313.8,4313.7,0.206]
[1756772826988,0.58196576,4313.8,4313.7,0.7027]
[1756772828280,3.5005,4314.2,4313.7,0.3987]
[1756772828477,0.238,4314.4,4313.4,3.1578641]
[1756772828478,0.78407558,4314.1,4314.0,0.7027]
[1756772828678,0.58237558,4314.1,4314.0,0.7027]
[1756772828882,0.2927,4314.6,4314.1,0.304]
[1756772829183,0.78400894,4314.5,4314.4,0.7027]
[1756772829583,1.07670894,4314.5,4314.4,0.7027]
[1756772830084,1.28260894,4314.5,4314.4,0.7027]
[1756772831478,0.58230894,4314.5,4314.4,0.7027]
[1756772831881,3.2078,4314.8,4314.5,0.2898]
[1756772832187,0.3094,4315.2,4314.8,0.4115]
[1756772832483,0.58173249,4315.1,4315.0,0.4115]
[1756772832674,0.238,4315.8,4315.1,0.2898]
[1756772832981,0.58162098,4315.7,4315.6,0.7013]
[1756772833277,1.28592098,4315.7,4315.6,0.7013]
[1756772833474,0.7043,4315.7,4315.6,0.7013]
[1756772833675,0.1972,4315.7,4315.6,0.7013]
[1756772833878,3.2078,4315.9,4315.8,0.4115]
[1756772834084,3.2078,4315.9,4315.8,0.7013]
[1756772834277,3.9121,4315.9,4315.8,0.7013]
[1756772834481,3.9121,4315.9,4315.4,0.2898]
[1756772834682,0.5066,4315.2,4315.1,3.6193]
[1756772834887,0.5066,4315.2,4315.1,4.1471]
[1756772835087,0.7043,4315.2,4315.1,4.1471]
[1756772835588,0.5066,4315.2,4315.1,4.1471]
[1756772835893,0.3094,4315.8,4315.1,4.1471]
[1756772836685,0.1972,4315.2,4315.1,4.1471]
[1756772836886,0.3094,4315.4,4315.1,4.1471]
[1756772837189,0.3094,4315.4,4315.3,0.4115]
[1756772837388,0.5066,4315.4,4315.3,0.7013]
[1756772837577,0.7043,4315.4,4315.3,0.7013]
[1756772838280,0.7043,4315.4,4315.1,3.2078]
[1756772838488,0.5066,4314.7,4314.6,44.2976]
[1756772838687,0.5066,4314.7,4314.6,4.1471]
[1756772839392,0.5066,4314.7,4314.6,3.6193]
[1756772839393,0.7043,4314.7,4314.6,3.6193]
[1756772839692,0.7043,4314.6,4314.5,0.2084]
[1756772839895,0.7043,4314.6,4314.5,0.7013]
[1756772842589,0.7043,4314.6,4314.5,0.4115]
[1756772842788,0.7043,4314.6,4314.2,0.2898]
[1756772842990,0.3949,4314.1,4314.0,3.2078]
[1756772843291,0.7043,4314.1,4314.0,3.4162]
[1756772843493,0.7043,4314.1,4314.0,3.9091]
[1756772844987,0.7043,4314.1,4313.0,0.2898]
[1756772844988,0.7043,4313.9,4313.0,0.2898]
[1756772845292,0.5066,4313.1,4313.0,0.7013]
[1756772846092,0.7043,4313.1,4313.0,0.7013]
[1756772846485,0.7043,4313.1,4313.0,0.2084]
[1756772846685,0.3094,4313.0,4312.7,3.2078]
[1756772846989,0.5066,4312.8,4312.7,3.9091]
[1756772847398,0.1972,4312.8,4312.7,3.9091]
[1756772847586,0.3094,4313.2,4312.7,3.6193]
[1756772847785,0.7043,4313.6,4313.5,0.2084]
[1756772847984,0.7043,4313.6,4313.0,0.2898]
[1756772850098,0.7043,4313.6,4313.5,0.2084]
[1756772850394,0.5066,4314.0,4313.9,0.4115]
[1756772850696,0.7043,4314.4,4314.3,0.2084]
[1756772850991,0.7043,4314.4,4313.9,0.2898]
[1756772851499,0.7043,4314.4,4313.5,0.238]
[1756772851500,3.3218,4314.5,4313.5,0.5278]
[1756772851694,0.3094,4314.4,4313.5,0.5278]
[1756772852298,0.3094,4314.4,4313.5,0.238]
[1756772852500,0.3094,4314.4,4313.6,0.2898]
[1756772852896,0.1972,4313.7,4313.6,0.4982]
[1756772853200,0.1972,4313.7,4313.4,3.2078]
[1756772853201,0.3949,4313.7,4313.4,3.2078]
[1756772853495,0.7043,4313.5,4313.4,0.7013]
[1756772854100,0.3094,4313.4,4312.9,0.238]
[1756772854289,2.9198641,4313.9,4312.9,0.238]
[1756772854488,2.9198641,4313.9,4312.9,0.5278]
[1756772854693,0.3094,4313.9,4313.0,0.2898]
[1756772856500,0.3094,4313.9,4312.9,0.238]
[1756772856501,0.5066,4313.9,4313.8,0.2084]
[1756772856693,0.5066,4313.9,4313.8,0.7013]
[1756772856894,0.7043,4313.9,4313.8,0.4115]
[1756772857300,0.7043,4313.9,4313.4,0.2898]
[1756772858999,0.3949,4313.9,4313.3,3.2078]
[1756772859194,3.3218,4314.0,4313.0,0.2084]
[1756772859195,0.7043,4313.1,4313.0,0.2084]
[1756772859789,0.7043,4313.1,4313.0,0.4115]
[1756772859994,0.7043,4313.1,4313.0,0.7013]
[1756772860195,0.7043,4313.1,4313.0,0.4115]
[1756772862101,0.7043,4313.1,4313.0,0.7047]
[1756772863405,0.7043,4313.1,4313.0,0.4115]
[1756772864193,0.7043,4313.1,4312.7,0.2932]
[1756772864600,0.3949,4313.1,4313.0,0.6892]
[1756772865001,0.3949,4313.1,4313.0,0.4981]
[1756772865298,0.6884,4313.1,4313.0,0.396]
[1756772865501,0.6884,4313.1,4313.0,0.6892]
[1756772866104,0.4946,4313.1,4313.0,0.396]
[1756772866504,0.6951,4313.1,4313.0,0.6892]
[1756772870011,0.88639645,4313.1,4313.0,0.6892]
[1756772872703,0.19129645,4313.1,4313.0,4.0127]
[1756772872909,0.2935,4314.4,4314.0,0.2932]
[1756772873104,0.2935,4315.0,4314.2,1.65461648]
[1756772873296,0.6951,4314.9,4314.5,3.2078]
[1756772873498,0.6951,4314.9,4314.8,0.2049]
[1756772874411,0.6951,4314.9,4314.8,0.6892]
[1756772874412,0.2011,4314.9,4314.8,0.6892]
[1756772874609,3.2078,4315.2,4314.8,0.396]
[1756772874810,0.2935,4315.2,4314.9,0.2932]